fUSD/lending_fUSD_20251120
["ID","MTS","AMOUNT","RATE_DAILY","PERIOD"]
[394490883,1763626232343,-2500.0,0.00016473,2]
[394490886,1763626232352,-3371.29614445,0.00016479,2]
[394490888,1763626232362,-222.41932101,0.00016484,2]
[394490890,1763626232371,-1000.0,0.00016499,2]
[394490891,1763626232380,-9086.33786212,0.00016499,2]
[394490893,1763626232389,-160.0,0.000165,2]
[394490894,1763626232398,-160.0,0.000165,2]
[394490895,1763626232408,-160.0,0.000165,2]
[394490896,1763626232417,-160.0,0.000165,2]
[394490897,1763626232427,-160.0,0.000165,2]
[394490898,1763626232436,-42596.24466746,0.000165,2]
[394490899,1763626232446,-6757.07643116,0.00016501,2]
[394490900,1763626232455,-500.0,0.00016572,2]
[394490901,1763626232465,-500.0,0.00016572,2]
[394490902,1763626232474,-500.0,0.00016572,2]
[394490903,1763626232484,-500.0,0.00016572,2]
[394490904,1763626232493,-500.0,0.00016572,2]
[394490905,1763626232503,-500.0,0.00016572,2]
[394490906,1763626232512,-500.0,0.00016572,2]
[394490907,1763626232521,-500.0,0.00016572,2]
[394490908,1763626232530,-500.0,0.00016572,2]
[394490909,1763626232540,-625.92607585,0.00016572,2]
[394490910,1763626232549,-500.0,0.00016572,2]
[394490911,1763626232558,-500.0,0.00016572,2]
[394490912,1763626232567,-500.0,0.00016572,2]
[394490913,1763626232577,-500.0,0.00016572,2]
[394490914,1763626232586,-500.0,0.00016572,2]
[394490915,1763626232595,-500.0,0.00016572,2]
[394490916,1763626232604,-500.79084728,0.00016573,2]
[394490917,1763626232613,-500.0,0.00016573,2]
[394490918,1763626232622,-500.0,0.00016573,2]
[394490919,1763626232632,-500.0,0.00016573,2]
[394490920,1763626232640,-500.0,0.00016573,2]
[394490921,1763626232651,-500.64938392,0.00016573,2]
[394490922,1763626232660,-500.0,0.00016573,2]
[394490923,1763626232670,-500.0,0.00016573,2]
[394490924,1763626232680,-502.23946923,0.00016573,2]
[394490925,1763626232689,-500.0,0.00016573,2]
[394490926,1763626232698,-500.0,0.00016573,2]
[394490927,1763626232707,-500.0,0.00016573,2]
[394490928,1763626232717,-500.0,0.00016573,2]
[394490929,1763626232725,-500.0,0.00016573,2]
[394490930,1763626232735,-500.27858845,0.00016573,2]
[394490931,1763626232744,-500.0,0.00016573,2]
[394490932,1763626232753,-500.0,0.00016573,2]
[394490933,1763626232763,-536.94546501,0.00016573,2]
[394490934,1763626232773,-500.0,0.00016573,2]
[394490935,1763626232782,-513.26276556,0.00016573,2]
[394490936,1763626232791,-500.0,0.00016573,2]
[394490937,1763626232800,-500.0,0.00016573,2]
[394490938,1763626232809,-500.7838585,0.00016573,2]
[394490939,1763626232818,-160.8601688,0.00016573,2]
[394490940,1763626232827,-500.0,0.00016573,2]
[394490941,1763626232837,-500.0,0.00016573,2]
[394490942,1763626232846,-500.0,0.00016573,2]
[394490943,1763626232855,-305.68130754,0.00016573,2]
[394490944,1763626232865,-343.11812876,0.00016573,2]
[394490945,1763626232878,-500.0,0.00016573,2]
[394490946,1763626232887,-500.0,0.00016573,2]
[394490947,1763626232896,-500.0,0.00016573,2]
[394490948,1763626232911,-500.0,0.00016573,2]
[394490949,1763626232920,-500.0,0.00016573,2]
[394490950,1763626232929,-500.0,0.00016573,2]
[394490951,1763626232939,-164.05007178,0.00016573,2]
[394490952,1763626232948,-213.98865376,0.00016573,2]
[394490953,1763626232959,-500.0,0.00016573,2]
[394490954,1763626232969,-480.85619442,0.00016573,2]
[394490955,1763626232978,-151.0,0.00016573,2]
[394490956,1763626232987,-274.19867703,0.00016573,2]
[394490957,1763626232997,-500.0,0.00016574,2]
[394490958,1763626233007,-500.0,0.00016574,2]
[394490959,1763626233016,-500.0,0.00016574,2]
[394490960,1763626233026,-500.0,0.00016574,2]
[394490961,1763626233035,-500.0,0.00016574,2]
[394490962,1763626233044,-500.0,0.00016574,2]
[394490963,1763626233054,-500.0,0.00016574,2]
[394490964,1763626233064,-500.0,0.00016574,2]
[394490965,1763626233074,-500.0,0.00016574,2]
[394490966,1763626233083,-500.0,0.00016574,2]
[394490967,1763626233092,-500.0,0.00016574,2]
[394490968,1763626233101,-500.0,0.00016574,2]
[394490969,1763626233111,-500.0,0.00016574,2]
[394490970,1763626233121,-58882.29495772,0.00016575,2]
[394490971,1763626233134,-304.39,0.00016575,2]
[394490972,1763626233146,-441.68914908,0.00016575,2]
[394490973,1763626237939,-41415.2628499,0.00016575,2]
[394490974,1763626237949,-3169.2532814,0.00016575,2]
[394490975,1763626237958,-967.3859039,0.00016575,2]
[394490976,1763626237967,-2957.33313739,0.00016575,2]
[394490977,1763626237990,-840.11198631,0.00016575,2]
[394490986,1763626239854,-5647.46738523,0.00016575,2]
[394490987,1763626239929,-311.5574026,0.00016575,2]
[394490988,1763626240008,-550.34073937,0.00016575,2]
[394490996,1763626244177,-832.4013078,0.00016301,2]
[394490997,1763626246096,-2180.0,0.00016301,2]
[394490998,1763626246107,-234.45404258,0.00016301,2]
[394490999,1763626246117,-26871.10253868,0.00016575,2]
[394491000,1763626246161,-1180.41790448,0.00016575,2]
[394491001,1763626246174,-1228.2,0.00016575,2]
[394491002,1763626246187,-1144.30681152,0.00016575,2]
[394491003,1763626246199,-1095.8988,0.00016575,2]
[394491004,1763626246211,-2014.36154585,0.00016575,2]
[394491005,1763626246241,-5265.36299976,0.00016575,2]
[394491016,1763626259493,150.0,0.00015826,2]
[394491018,1763626259734,150.0,0.00015826,120]
[394491033,1763626286105,500.0,0.00041991,120]
[394491034,1763626286352,500.0,0.00041991,120]
[394491035,1763626286593,500.0,0.00041991,120]
[394491036,1763626286854,499.1988,0.00041991,120]
[394491038,1763626337946,513.86,0.00015811,2]
[394491040,1763626426540,2005.5633904,0.0001499,2]
[394491051,1763626463469,151.0,0.00041991,60]
[394491053,1763626520433,250.0,0.0001581,2]
[394491057,1763626545063,-300.0,0.00016299,2]
[394491058,1763626545086,-300.0,0.00016299,2]
[394491059,1763626545108,-1200.0,0.00016299,2]
[394491060,1763626545129,-463.0,0.00016299,2]
[394491061,1763626545154,-5269.7853784,0.000163,2]
[394491064,1763626570772,2751.0,0.00015835,2]
[394491066,1763626573426,311.0,0.00032,120]
[394491068,1763626600588,1991.57,0.00041991,120]
[394491069,1763626600837,1991.57,0.00041991,120]
[394491070,1763626601088,1991.57,0.00041991,120]
[394491071,1763626601350,1991.57,0.00041991,120]
[394491072,1763626601613,1991.57,0.00041991,120]
[394491073,1763626601844,1991.57,0.00041991,120]
[394491074,1763626602082,1991.57,0.00041991,120]
[394491075,1763626602317,1991.57,0.00041991,120]
[394491076,1763626602573,1991.57,0.00041991,120]
[394491077,1763626602802,1991.57,0.00041991,120]
[394491078,1763626603049,1991.57,0.00041991,120]
[394491079,1763626603974,1991.57,0.00041991,120]
[394491080,1763626604222,1991.57,0.00041991,120]
[394491081,1763626604460,1991.57,0.00041991,120]
[394491082,1763626604702,1991.57,0.00041991,120]
[394491083,1763626604946,1991.57,0.00041991,120]
[394491084,1763626605190,1991.57,0.00041991,120]
[394491085,1763626605460,1991.57,0.00041991,120]
[394491086,1763626605718,1991.57,0.00041991,120]
[394491087,1763626606026,1991.57,0.00041991,120]
[394491088,1763626606269,1991.57,0.00041991,120]
[394491089,1763626606502,1991.57,0.00041991,120]
[394491090,1763626606771,1991.57,0.00041991,120]
[394491091,1763626607028,1991.79729108,0.00041991,120]
[394491105,1763626705157,283.46538026,0.000162,2]
[394491106,1763626705183,2413.5715353,0.000162,2]
[394491118,1763626784741,266.26,0.00015767,2]
[394491119,1763626797654,183.62271815,0.000162,2]
[394491126,1763626890336,610.0,0.00015757,2]
[394491127,1763626892835,936.822,0.00015974,2]
[394491128,1763626892894,171.243,0.00015974,2]
[394491132,1763626925984,2172.91,0.00015748,2]
[394491134,1763626988244,182.01310552,0.00016199,2]
[394491136,1763627000433,150.0,0.00015787,2]
[394491140,1763627020172,2922.16981536,0.000162,2]
[394491141,1763627072344,1500.0,0.00015798,2]
[394491145,1763627110429,150.0,0.000162,2]
[394491146,1763627130896,150.0,0.000162,2]
[394491149,1763627212977,1875.12356171,0.000162,5]
[394491150,1763627215467,2427.33322404,0.000162,2]
[394491151,1763627228555,1057.607539,7.945e-05,2]
[394491159,1763627233219,200.0,0.000159,5]
[394491160,1763627235362,500.0,0.000169,6]
[394491166,1763627291491,304706.44706263,0.000162,2]
[394491172,1763627337091,160.0,0.000328,120]
[394491173,1763627364736,999.0,0.00015691,3]
[394491178,1763627396714,1000.0,0.00015691,2]
[394491179,1763627408582,896.94,0.00015729,2]
[394491200,1763627432025,-2629.95283386,0.00016198,2]
[394491202,1763627432035,-250.0,0.00016198,2]
[394491205,1763627432044,-1000.0,0.00016199,2]
[394491209,1763627432054,-300.0,0.00016199,2]
[394491212,1763627432064,-294.95000834,0.00016199,2]
[394491216,1763627432204,-905.04999166,0.00016199,2]
[394491217,1763627432217,-446.43477804,0.00016199,2]
[394491218,1763627432229,-103.56522196,0.00016199,2]
[394491219,1763627432238,-1369.95930577,0.000162,2]
[394491220,1763627432250,-9476.39291079,0.000162,2]
[394491221,1763627432263,-4184.26610192,0.000162,2]
[394491222,1763627432275,-2278.10192052,0.000162,2]
[394491223,1763627432287,-295027.29503254,0.000162,2]
[394491224,1763627432301,-49833.44945927,0.000162,2]
[394491225,1763627432312,-15759.84997203,0.000162,2]
[394491226,1763627432324,-76480.45987433,0.000162,2]
[394491227,1763627432336,-883.7783602,0.000162,2]
[394491228,1763627432345,-867.68026153,0.00016299,2]
[394491229,1763627432358,-132.31973847,0.00016299,2]
[394491230,1763627432368,-180.83829148,0.00016299,2]
[394491239,1763627438029,-319.16170852,0.00016299,2]
[394491240,1763627438038,-500.0,0.00016299,2]
[394491241,1763627438048,-504.53186141,0.00016299,2]
[394491242,1763627438058,-500.0,0.00016299,2]
[394491243,1763627438067,-500.0,0.00016299,2]
[394491244,1763627438077,-500.0,0.00016299,2]
[394491245,1763627438087,-534.14205378,0.00016299,2]
[394491246,1763627438098,-75.15839099,0.00016299,2]
[394491247,1763627438107,-500.0,0.00016299,2]
[394491248,1763627438119,-500.0,0.00016299,2]
[394491249,1763627438130,-500.0,0.00016299,2]
[394491250,1763627438139,-532.64325832,0.00016299,2]
[394491251,1763627438148,-500.0,0.00016299,2]
[394491252,1763627438157,-440.20252509,0.00016299,2]
[394491253,1763627438167,-1336.2,0.00016299,2]
[394491254,1763627438176,-227.24756849,0.00016299,2]
[394491255,1763627438188,-18.22879938,0.00016299,2]
[394491256,1763627438197,-500.0,0.00016299,2]
[394491257,1763627438208,-336.03492657,0.00016299,2]
[394491258,1763627438222,-500.0,0.00016299,2]
[394491259,1763627438231,-500.0,0.00016299,2]
[394491260,1763627438241,-500.0,0.00016299,2]
[394491261,1763627438251,-491.57867457,0.00016299,2]
[394491262,1763627438262,-500.0,0.00016299,2]
[394491263,1763627438271,-500.0,0.00016299,2]
[394491264,1763627438280,-500.0,0.00016299,2]
[394491265,1763627438291,-500.0,0.00016299,2]
[394491266,1763627438300,-641.7495824,0.00016299,2]
[394491267,1763627438310,-274.19867702,0.000163,2]
[394491268,1763627438320,-151.0,0.000163,2]
[394491270,1763627438332,-222.41932101,0.00016376,2]
[394491272,1763627438341,-2629.95283379,0.00016387,2]
[394491274,1763627438351,-2427.333224,0.00016389,2]
[394491275,1763627438360,-1682.17327,0.0001641,2]
[394491276,1763627438369,-1682.17328,0.0001641,2]
[394491277,1763627438379,-2392.24,0.00016438,2]
[394491278,1763627438388,-5537.73,0.00016438,2]
[394491279,1763627438398,-611.0,0.00016521,2]
[394491280,1763627438407,-2907.26749216,0.00016545,2]
[394491281,1763627438417,-14745.3639191,0.00016558,2]
[394491282,1763627438429,-6640.8644261,0.00016558,2]
[394491283,1763627438438,-1101.001893,0.00016558,2]
[394491284,1763627438447,-613.5954319,0.00016558,2]
[394491285,1763627438458,-21050.4599676,0.00016558,2]
[394491286,1763627438468,-772.88123224,0.00016558,2]
[394491287,1763627438477,-500.0,0.00016573,2]
[394491288,1763627438488,-500.0,0.00016573,2]
[394491289,1763627438497,-500.0,0.00016573,2]
[394491290,1763627438506,-851.97899958,0.00016573,2]
[394491291,1763627438518,-484.22100042,0.00016573,2]
[394491292,1763627438529,-1789.16725866,0.00016575,2]
[394491293,1763627438549,-1360.25058712,0.00016575,2]
[394491295,1763627440096,-87197.43499343,0.00016575,2]
[394491296,1763627440107,-16672.9836437,0.00016575,2]
[394491297,1763627440118,-640.0777,0.00016575,2]
[394491299,1763627440128,-640.07771,0.00016575,2]
[394491301,1763627440136,-640.07771,0.00016575,2]
[394491302,1763627440146,-640.0777,0.00016575,2]
[394491304,1763627440155,-640.07771,0.00016575,2]
[394491305,1763627440164,-640.07771,0.00016575,2]
[394491307,1763627440173,-1682.17327,0.00016575,2]
[394491309,1763627440182,-1682.17327,0.00016575,2]
[394491310,1763627440192,-1682.17328,0.00016575,2]
[394491312,1763627440201,-1682.17327,0.00016575,2]
[394491313,1763627440210,-500.0,0.00016575,2]
[394491315,1763627440225,-150.0,0.00016575,2]
[394491317,1763627440234,-276.01381595,0.00016575,2]
[394491318,1763627440243,-2629.95283379,0.00016576,2]
[394491320,1763627440253,-2427.333224,0.00016578,2]
[394491322,1763627440264,-1419.0,0.00016597,2]
[394491324,1763627440274,-500.0,0.00016602,2]
[394491325,1763627440285,-500.0,0.0001663,2]
[394491326,1763627440295,-500.0,0.00016657,2]
[394491327,1763627440304,-270.0,0.00016667,2]
[394491328,1763627440315,-500.0,0.00016685,2]
[394491330,1763627440324,-500.0,0.00016712,2]
[394491332,1763627440333,-366.64784238,0.00016739,2]
[394491334,1763627440343,-2629.95283379,0.00016765,2]
[394491336,1763627440352,-2427.333224,0.00016767,2]
[394491338,1763627440362,-500.0,0.00016795,2]
[394491340,1763627440372,-169.55,0.000168,2]
[394491342,1763627440381,-169.55,0.000168,2]
[394491344,1763627440391,-169.55,0.000168,2]
[394491346,1763627440400,-169.55,0.000168,2]
[394491348,1763627440409,-169.55,0.000168,2]
[394491351,1763627440427,-374.95,0.000168,2]
[394491353,1763627440439,-169.6,0.000168,2]
[394491355,1763627440448,-339.05,0.000168,2]
[394491357,1763627440457,-169.55,0.000168,2]
[394491359,1763627440468,-169.55,0.000168,2]
[394491362,1763627440479,-270.0,0.00016819,2]
[394491364,1763627440492,-1336.2,0.00016847,2]
[394491366,1763627440502,-270.0,0.00016871,2]
[394491368,1763627440512,-288.71,0.00016872,2]
[394491369,1763627440522,-164.57139223,0.00016888,2]
[394491370,1763627440531,-165.69252864,0.00016888,2]
[394491371,1763627440540,-977.86170502,0.00016888,2]
[394491372,1763627440550,-1246.0,0.000169,2]
[394491373,1763627440561,-151.0,0.000169,2]
[394491374,1763627440571,-1246.0,0.000169,2]
[394491375,1763627440580,-151.0,0.000169,2]
[394491376,1763627440590,-1246.0,0.000169,2]
[394491377,1763627440600,-151.0,0.000169,2]
[394491378,1763627440610,-1246.0,0.000169,2]
[394491379,1763627440621,-151.0,0.000169,2]
[394491380,1763627440631,-1267.94703796,0.000169,2]
[394491381,1763627440641,-151.0,0.000169,2]
[394491382,1763627440652,-151.0,0.000169,2]
[394491383,1763627440662,-1246.0,0.000169,2]
[394491384,1763627440671,-151.0,0.000169,2]
[394491385,1763627440681,-1246.0,0.000169,2]
[394491386,1763627440690,-151.0,0.000169,2]
[394491387,1763627440700,-1246.0,0.000169,2]
[394491388,1763627440710,-1246.0,0.000169,2]
[394491389,1763627440720,-151.0,0.000169,2]
[394491390,1763627440729,-153.0,0.000169,2]
[394491391,1763627440741,-1246.0,0.000169,2]
[394491392,1763627440750,-151.0,0.000169,2]
[394491393,1763627440762,-154.6687065,0.000169,2]
[394491394,1763627440771,-1246.0,0.000169,2]
[394491395,1763627440781,-151.0,0.000169,2]
[394491396,1763627440791,-153.0,0.000169,2]
[394491397,1763627440807,-1246.0,0.000169,2]
[394491398,1763627440818,-151.0,0.000169,2]
[394491399,1763627440827,-153.0,0.000169,2]
[394491400,1763627440837,-1246.0,0.000169,2]
[394491401,1763627440847,-151.0,0.000169,2]
[394491402,1763627440858,-153.0,0.000169,2]
[394491403,1763627440869,-151.0,0.000169,2]
[394491404,1763627440879,-166.66,0.00016907,2]
[394491405,1763627440891,-2629.95283379,0.00016954,2]
[394491406,1763627440902,-2427.333224,0.00016956,2]
[394491407,1763627440912,-1419.0,0.00016972,2]
[394491408,1763627440922,-500.0,0.00016973,2]
[394491409,1763627440932,-500.0,0.00016973,2]
[394491410,1763627440942,-500.0,0.00016973,2]
[394491411,1763627440953,-500.0,0.00016973,2]
[394491412,1763627440964,-500.32492851,0.00016973,2]
[394491413,1763627440974,-500.0,0.00016973,2]
[394491414,1763627440989,-501.51080569,0.00016973,2]
[394491415,1763627440999,-500.0,0.00016973,2]
[394491416,1763627441009,-313.99370442,0.00016973,2]
[394491417,1763627441018,-500.0,0.00016973,2]
[394491418,1763627441028,-500.0,0.00016973,2]
[394491419,1763627441038,-500.0,0.00016973,2]
[394491420,1763627441047,-500.0,0.00016986,2]
[394491421,1763627441058,-152.024064,0.00016986,2]
[394491422,1763627441068,-151.0,0.00016986,2]
[394491423,1763627441077,-153.538879,0.00016986,2]
[394491424,1763627441087,-151.0,0.00016986,2]
[394491425,1763627441097,-151.0,0.00016986,2]
[394491426,1763627441107,-152.112998,0.00016986,2]
[394491427,1763627441117,-152.112998,0.00016986,2]
[394491428,1763627441128,-152.112998,0.00016986,2]
[394491429,1763627441138,-152.112998,0.00016986,2]
[394491430,1763627441148,-57613.05,0.00016986,2]
[394491431,1763627441158,-168.0,0.00016988,2]
[394491432,1763627441168,-826.21546726,0.0001699,2]
[394491433,1763627441178,-250.0,0.00017,2]
[394491434,1763627441192,-124217.53058413,0.00017,2]
[394491435,1763627441208,-1557.38467929,0.00017,2]
[394491436,1763627441224,-714.30435223,0.00017,2]
[394491437,1763627441237,-2161.84006027,0.00017,2]
[394491438,1763627441250,-909.41,0.00017,2]
[394491443,1763627444574,-273.04976888,0.00017,2]
[394491445,1763627444696,-4693.57473981,0.00017,2]
[394491446,1763627444707,-1418.58076093,0.00017,2]
[394491447,1763627444720,-1266.37776677,0.00017,2]
[394491448,1763627444732,-628.66729485,0.00017,2]
[394491449,1763627444743,-1553.43760268,0.00017,2]
[394491450,1763627444755,-1620.67277694,0.00017,2]
[394491452,1763627444767,-886.69793815,0.00017,2]
[394491454,1763627444778,-836.95558719,0.00017,2]
[394491457,1763627444791,-636.87301503,0.00017,2]
[394491459,1763627444803,-399.9169198,0.00017,2]
[394491509,1763627446201,-2335.28514271,0.00017,2]
[394491510,1763627446267,-1186.10579435,0.00017,2]
[394491511,1763627446332,-976.51,0.00017,2]
[394491516,1763627459636,10000.01,0.000161,2]
[394491517,1763627459659,10000.01,0.000161,2]
[394491518,1763627459684,10000.01,0.000161,2]
[394491519,1763627459708,10000.01,0.000161,2]
[394491520,1763627459736,10000.01,0.000161,2]
[394491521,1763627459762,10000.01,0.000161,2]
[394491522,1763627459786,10000.01,0.000161,2]
[394491523,1763627459811,10000.01,0.000161,2]
[394491524,1763627459839,10000.01,0.000161,2]
[394491525,1763627459863,10000.01,0.000161,2]
[394491526,1763627459890,10000.01,0.000161,2]
[394491527,1763627459914,10000.01,0.000161,2]
[394491528,1763627459939,10000.01,0.000161,2]
[394491529,1763627459964,10000.01,0.000161,2]
[394491530,1763627459990,10000.01,0.000161,2]
[394491531,1763627460575,-270.34750041,0.000161,2]
[394491532,1763627463660,-446.53305701,0.000161,2]
[394491533,1763627465336,-263.27602428,0.000161,2]
[394491534,1763627469736,-2279.41130608,0.000161,2]
[394491535,1763627469850,-10000.01,0.000161,2]
[394491536,1763627469951,-10000.01,0.000161,2]
[394491537,1763627470074,-10000.01,0.000161,2]
[394491538,1763627470184,-10000.01,0.000161,2]
[394491539,1763627470314,-10000.01,0.000161,2]
[394491540,1763627471685,-10000.01,0.000161,2]
[394491541,1763627471827,-10000.01,0.000161,2]
[394491542,1763627472182,-10000.01,0.000161,2]
[394491543,1763627472305,-10000.01,0.000161,2]
[394491544,1763627472476,-10000.01,0.000161,2]
[394491545,1763627472588,-10000.01,0.000161,2]
[394491546,1763627472786,-10000.01,0.000161,2]
[394491547,1763627472901,-10000.01,0.000161,2]
[394491548,1763627472989,-10000.01,0.000161,2]
[394491549,1763627473102,-10000.01,0.000161,2]
[394491550,1763627473226,-10000.01,0.000161,2]
[394491551,1763627473349,-10000.01,0.000161,2]
[394491552,1763627473448,-10000.01,0.000161,2]
[394491553,1763627473564,-10000.01,0.000161,2]
[394491554,1763627473664,-10000.01,0.000161,2]
[394491555,1763627474769,-10000.01,0.000161,2]
[394491556,1763627474855,-10000.01,0.000161,2]
[394491557,1763627474965,-10000.01,0.000161,2]
[394491558,1763627475084,-10000.01,0.000161,2]
[394491559,1763627475171,-10000.01,0.000161,2]
[394491560,1763627475289,-10000.01,0.000161,2]
[394491561,1763627475527,-10000.01,0.000161,2]
[394491562,1763627475733,-10000.01,0.000161,2]
[394491563,1763627475898,-10000.01,0.000161,2]
[394491564,1763627476045,-10000.01,0.000161,2]
[394491565,1763627476152,-10000.01,0.000161,2]
[394491566,1763627476294,-10000.01,0.000161,2]
[394491567,1763627476426,-10000.01,0.000161,2]
[394491568,1763627476539,-10000.01,0.000161,2]
[394491569,1763627476655,-10000.01,0.000161,2]
[394491570,1763627477346,-264.08092578,0.000161,2]
[394491571,1763627480821,-10000.01,0.000161,2]
[394491572,1763627480933,-10000.01,0.000161,2]
[394491573,1763627481040,-10000.01,0.000161,2]
[394491574,1763627481165,-10000.01,0.000161,2]
[394491575,1763627481303,-10000.01,0.000161,2]
[394491576,1763627481416,-10000.01,0.000161,2]
[394491577,1763627481531,-10000.01,0.000161,2]
[394491578,1763627481646,-10000.01,0.000161,2]
[394491579,1763627481758,-10000.01,0.000161,2]
[394491580,1763627481869,-10000.01,0.000161,2]
[394491581,1763627481996,-10000.01,0.000161,2]
[394491582,1763627482171,-10000.01,0.000161,2]
[394491583,1763627482324,-10000.01,0.000161,2]
[394491584,1763627482610,-10000.01,0.000161,2]
[394491585,1763627482624,-10000.01,0.000161,2]
[394491586,1763627492774,749.457,0.00015778,2]
[394491587,1763627492892,171.243,0.00015778,2]
[394491588,1763627499401,-10000.01,0.000161,2]
[394491589,1763627499477,-10000.01,0.000161,2]
[394491590,1763627499595,-10000.01,0.000161,2]
[394491591,1763627499714,-10000.01,0.000161,2]
[394491592,1763627499854,-10000.01,0.000161,2]
[394491593,1763627499949,-10000.01,0.000161,2]
[394491594,1763627500065,-10000.01,0.000161,2]
[394491595,1763627500183,-10000.01,0.000161,2]
[394491596,1763627500329,-10000.01,0.000161,2]
[394491597,1763627500454,-10000.01,0.000161,2]
[394491598,1763627500630,-3524.40881356,0.000161,2]
[394491599,1763627500665,-2951.19237288,0.000161,2]
[394491600,1763627500781,-1026.1289596,0.000161,2]
[394491601,1763627500820,-2500.0,0.000161,2]
[394491603,1763627503254,-1000.0,0.00016723,2]
[394491604,1763627503280,-453.365,0.00016723,2]
[394491605,1763627503305,-1000.0,0.00016723,2]
[394491606,1763627503329,-1000.0,0.00016723,2]
[394491607,1763627503358,-46.635,0.00016723,2]
[394491608,1763627511275,500.0,0.00016199,2]
[394491610,1763627532016,2447.7520808,0.00016105,2]
[394491611,1763627532038,10000.01,0.00016105,2]
[394491612,1763627532062,10000.01,0.00016105,2]
[394491613,1763627532084,4593.9385798,0.00016105,2]
[394491614,1763627536575,-500.0,0.00016409,2]
[394491615,1763627536597,-408.31362115,0.00016446,2]
[394491616,1763627536619,-300.0,0.00016483,2]
[394491617,1763627536645,-500.0,0.00016557,2]
[394491618,1763627536669,-500.0,0.00016557,2]
[394491619,1763627536693,-500.0,0.00016557,2]
[394491620,1763627536717,-500.0,0.00016557,2]
[394491621,1763627536741,-500.0,0.00016557,2]
[394491622,1763627536766,-500.0,0.00016557,2]
[394491623,1763627536793,-500.0,0.00016557,2]
[394491624,1763627536818,-500.0,0.00016557,2]
[394491625,1763627536842,-500.0,0.00016557,2]
[394491626,1763627536869,-500.0,0.00016557,2]
[394491627,1763627536895,-500.0,0.00016557,2]
[394491628,1763627536919,-500.0,0.00016557,2]
[394491629,1763627536943,-500.0,0.00016557,2]
[394491630,1763627536970,-500.0,0.00016557,2]
[394491631,1763627536994,-500.0,0.00016557,2]
[394491632,1763627537024,-500.0,0.00016557,2]
[394491633,1763627537049,-500.0,0.00016557,2]
[394491634,1763627537076,-500.0,0.00016557,2]
[394491635,1763627537101,-500.0,0.00016557,2]
[394491636,1763627537124,-500.0,0.00016557,2]
[394491637,1763627537148,-500.0,0.00016557,2]
[394491638,1763627537172,-500.0,0.00016557,2]
[394491639,1763627537196,-500.0,0.00016557,2]
[394491640,1763627537412,-500.0,0.00016557,2]
[394491641,1763627537438,-500.0,0.00016557,2]
[394491642,1763627537464,-500.0,0.00016557,2]
[394491643,1763627537488,-500.0,0.00016557,2]
[394491644,1763627537514,-500.0,0.00016557,2]
[394491645,1763627537539,-500.0,0.00016557,2]
[394491646,1763627537564,-467.02749642,0.00016557,2]
[394491647,1763627537586,-500.0,0.00016557,2]
[394491648,1763627537613,-500.0,0.00016557,2]
[394491649,1763627537635,-480.58730364,0.00016557,2]
[394491650,1763627537660,-500.0,0.00016557,2]
[394491651,1763627537684,-500.0,0.00016557,2]